bitfinex-derivatives/quotes_ETHF0:USTF0_20210110
["timestamp","ask_amount","ask_price","bid_price","bid_amount"]
[1610289823694,33.8368107,1300.7,1300.6,10.0]
[1610289824494,47.45127222,1300.7,1300.6,10.0]
[1610289825397,45.93297222,1300.7,1300.6,10.0]
[1610289825599,33.8368107,1300.7,1300.6,10.0]
[1610289827299,45.93177489,1300.7,1300.6,10.0]
[1610289828400,33.8368107,1300.7,1300.6,10.0]
[1610289828900,35.3966107,1300.7,1300.6,10.0]
[1610289829701,45.93341581,1300.7,1300.6,10.0]
[1610289831001,33.8368107,1300.7,1300.6,10.0]
[1610289832001,42.22348709,1300.7,1300.6,10.0]
[1610289832305,38.50229293,1300.7,1300.6,10.0]
[1610289832903,38.50229293,1300.7,1300.6,14.00959]
[1610289833103,37.10601721,1300.7,1300.6,14.00959]
[1610289833305,33.8368107,1300.7,1300.6,14.00959]
[1610289833503,29.8272207,1300.7,1300.6,14.00959]
[1610289833704,33.09608692,1300.7,1300.6,14.00959]
[1610289835504,29.8272207,1300.7,1300.6,14.00959]
[1610289837509,33.09581075,1300.7,1300.6,14.00959]
[1610289838409,34.4929025,1300.7,1300.6,14.00959]
[1610289838810,29.8272207,1300.7,1300.6,14.00959]
[1610289839010,33.8368107,1300.7,1300.6,14.00959]
[1610289839210,40.36530066,1300.7,1300.6,14.00959]
[1610289839610,33.8368107,1300.7,1300.6,14.00959]
[1610289840314,38.5028932,1300.7,1300.6,14.00959]
[1610289841116,40.0221932,1300.7,1300.6,14.00959]
[1610289841318,35.3561107,1300.7,1300.6,14.00959]
[1610289841919,33.8368107,1300.7,1300.6,14.00959]
[1610289842119,40.37300598,1300.7,1300.6,14.00959]
[1610289842919,41.90300598,1300.7,1300.6,14.00959]
[1610289843420,40.37300598,1300.7,1300.6,14.00959]
[1610289844122,36.36341598,1300.7,1300.6,14.00959]
[1610289844320,29.8272207,1300.7,1300.6,14.00959]
[1610289844521,37.90661654,1300.7,1300.6,14.00959]
[1610289844921,33.51884829,1300.7,1300.6,14.00959]
[1610289845121,37.52843829,1300.7,1300.6,14.00959]
[1610289845321,40.64133808,1300.7,1300.6,14.00959]
[1610289846326,42.20153808,1300.7,1300.6,14.00959]
[1610289846928,40.64133808,1300.7,1300.6,14.00959]
[1610289847328,34.10614224,1300.7,1300.6,14.00959]
[1610289847928,35.62904224,1300.7,1300.6,14.00959]
[1610289848132,42.1659278,1300.7,1300.6,14.00959]
[1610289848329,40.6430278,1300.7,1300.6,14.00959]
[1610289849332,42.1916278,1300.7,1300.6,14.00959]
[1610289850032,40.6430278,1300.7,1300.6,14.00959]
[1610289851233,40.6430278,1300.7,1300.6,10.0]
[1610289851433,34.10614224,1300.7,1300.6,10.0]
[1610289853334,35.64814224,1300.7,1300.6,10.0]
[1610289853535,49.59042579,1300.7,1300.6,10.0]
[1610289853736,51.94552579,1300.7,1300.6,10.0]
[1610289854134,50.40352579,1300.7,1300.6,10.0]
[1610289854335,36.46124224,1300.7,1300.6,10.0]
[1610289855937,44.00667019,1300.7,1300.6,10.0]
[1610289856138,38.01444224,1300.7,1300.6,10.0]
[1610289858145,36.46124224,1300.7,1300.6,10.0]
[1610289858443,45.88928654,1300.7,1300.6,10.0]
[1610289859343,47.41978654,1300.7,1300.6,10.0]
[1610289859942,37.99174224,1300.7,1300.6,10.0]
[1610289860143,36.46124224,1300.7,1300.6,10.0]
[1610289860743,52.23238131,1300.7,1300.6,10.0]
[1610289861143,53.75918131,1300.7,1300.6,10.0]
[1610289861344,52.23238131,1300.7,1300.6,10.0]
[1610289862546,37.97834224,1300.7,1300.6,10.0]
[1610289863645,36.46124224,1300.7,1300.6,10.0]
[1610289864746,37.99284224,1300.7,1300.6,10.0]
[1610289864946,36.46124224,1300.7,1300.6,10.0]
[1610289865348,52.23225882,1300.7,1300.6,10.0]
[1610289865550,36.46124224,1300.7,1300.6,10.0]
[1610289867155,38.00694224,1300.7,1300.6,10.0]
[1610289867358,52.20948021,1300.7,1300.6,10.0]
[1610289867655,36.46124224,1300.7,1300.6,10.0]
[1610289868256,38.00614224,1300.7,1300.6,10.0]
[1610289868657,52.1880232,1300.7,1300.6,10.0]
[1610289869461,36.46124224,1300.7,1300.6,10.0]
[1610289869658,37.98714224,1300.7,1300.6,10.0]
[1610289869858,36.46124224,1300.7,1300.6,10.0]
[1610289870962,37.98574224,1300.7,1300.6,10.0]
[1610289871462,53.67943292,1300.7,1300.6,10.0]
[1610289871662,52.15493292,1300.7,1300.6,10.0]
[1610289872661,61.58291254,1300.7,1300.6,10.0]
[1610289872861,47.40952186,1300.7,1300.6,10.0]
[1610289873162,53.43541298,1300.7,1300.6,10.0]
[1610289873461,45.88922186,1300.7,1300.6,10.0]
[1610289874163,47.42122186,1300.7,1300.6,10.0]
[1610289875763,45.88922186,1300.7,1300.6,10.0]
[1610289876863,47.43042186,1300.7,1300.6,10.0]
[1610289877265,45.88922186,1300.7,1300.6,10.0]
[1610289878265,47.40652186,1300.7,1300.6,10.0]
[1610289880370,45.88922186,1300.7,1300.6,10.0]
[1610289881373,63.36509913,1300.7,1300.6,10.0]
[1610289881573,45.88922186,1300.7,1300.6,5.28301206]
[1610289881773,53.43638691,1300.7,1300.6,5.28301206]
[1610289882573,54.97128691,1300.7,1300.6,5.28301206]
[1610289882774,84.97128691,1300.7,1300.6,5.28301206]
[1610289883575,83.43638691,1300.7,1300.6,5.28301206]
[1610289884776,84.99158691,1300.7,1300.6,5.28301206]
[1610289885576,103.36180496,1300.7,1300.6,5.28301206]
[1610289885977,101.80660496,1300.7,1300.6,5.28301206]
[1610289886879,103.32590496,1300.7,1300.6,5.28301206]
[1610289887178,101.80660496,1300.7,1300.6,5.28301206]
[1610289888178,103.32510496,1300.7,1300.6,5.28301206]
[1610289888379,103.32510496,1300.7,1299.4,56.3586]
[1610289888780,103.32510496,1300.7,1299.5,10.0]
[1610289888981,13.78141582,1299.7,1299.5,10.0]
[1610289889180,13.78141582,1299.7,1299.6,10.0]
[1610289889380,16.02221582,1299.7,1299.6,10.0]
[1610289889580,16.02221582,1299.7,1299.5,10.0]
[1610289889780,16.02221582,1299.7,1299.6,10.0]
[1610289890382,18.57909119,1299.7,1299.5,10.0]
[1610289890582,18.57909119,1299.7,1299.6,10.0]
[1610289890583,3.7989,1299.7,1299.6,10.0]
[1610289890883,3.7989,1299.7,1299.4,56.3586]
[1610289890884,18.31058738,1299.7,1299.5,10.0]
[1610289891286,18.31058738,1299.7,1299.4,56.3586]
[1610289891287,6.56874493,1299.6,1299.4,56.3586]
[1610289891689,21.28123932,1299.6,1299.5,10.0]
[1610289891885,16.6903192,1299.6,1299.5,10.0]
[1610289892688,6.56874493,1299.6,1299.5,10.0]
[1610289892888,16.69230415,1299.6,1299.5,10.0]
[1610289894187,18.23760415,1299.6,1299.5,10.0]
[1610289894788,16.69230415,1299.6,1299.5,10.0]
[1610289894988,14.13314922,1299.6,1299.5,10.0]
[1610289895389,6.65012148,1299.6,1299.5,10.0]
[1610289896589,18.5799897,1299.6,1299.5,10.0]
[1610289896890,20.0981897,1299.6,1299.5,10.0]
[1610289897091,18.5799897,1299.6,1299.5,10.0]
[1610289897591,6.65012148,1299.6,1299.5,10.0]
[1610289899391,20.37385019,1299.6,1299.5,10.0]
[1610289899590,21.92885019,1299.6,1299.5,10.0]
[1610289899791,20.37385019,1299.6,1299.5,10.0]
[1610289899992,6.65012148,1299.6,1299.5,10.0]
[1610289900693,22.18780258,1299.6,1299.5,10.0]
[1610289901093,23.72730258,1299.6,1299.5,10.0]
[1610289901293,17.62526434,1299.6,1299.5,10.0]
[1610289901693,33.15205695,1299.6,1299.5,10.0]
[1610289902093,17.62526434,1299.6,1299.5,10.0]
[1610289902293,16.08576434,1299.6,1299.5,10.0]
[1610289902996,46.08576434,1299.6,1299.5,10.0]
[1610289903394,68.14421139,1299.6,1299.5,10.0]
[1610289903594,69.03352297,1299.6,1299.5,10.0]
[1610289903794,69.03352297,1299.6,1299.5,1.6573]
[1610289903995,69.03352297,1299.6,1298.3,44.8177]
[1610289904194,11.84995677,1298.4,1298.3,44.8177]
[1610289904597,2.292,1298.4,1298.3,44.8177]
[1610289904996,5.08544952,1298.4,1298.3,44.8177]
[1610289905196,9.09503952,1298.4,1298.3,44.8177]
[1610289905599,9.09503952,1298.4,1298.3,54.8177]
[1610289908100,13.58056386,1298.4,1298.3,54.8177]
[1610289908399,24.63168318,1298.4,1298.3,54.8177]
[1610289910501,9.09503952,1298.4,1298.3,54.8177]
[1610289911201,9.09503952,1298.4,1298.3,10.0]
[1610289913605,26.44602469,1298.4,1298.3,5.27494859]
[1610289913806,9.09503952,1298.4,1298.3,5.27494859]
[1610289914207,13.64457121,1298.4,1298.3,5.27494859]
[1610289914807,9.09503952,1298.4,1298.3,5.27494859]
[1610289915609,24.61927541,1298.4,1298.3,5.27494859]
[1610289915809,9.09503952,1298.4,1298.3,5.27494859]
[1610289916209,24.63567918,1298.4,1298.3,5.27494859]
[1610289917010,9.09503952,1298.4,1298.3,5.27494859]
[1610289920414,57.2613,1298.3,1297.1,51.8888]
[1610289920816,13.69338989,1297.3,1297.1,51.8888]
[1610289921017,13.69338989,1297.3,1297.2,10.0]
[1610289921216,1.62,1297.3,1297.2,10.0]
[1610289921416,8.10604045,1297.3,1297.1,51.8888]
[1610289921817,5.62959,1297.3,1297.2,10.0]
[1610289922118,8.10398198,1297.3,1297.2,10.0]
[1610289922717,9.66238198,1297.3,1297.2,10.0]
[1610289922917,17.55803401,1297.3,1297.2,10.0]
[1610289926816,15.08364203,1297.3,1297.2,10.0]
[1610289927218,21.99729501,1297.3,1297.2,10.0]
[1610289927417,17.56128804,1297.3,1297.2,10.0]
[1610289927917,21.99790385,1297.3,1297.2,10.0]
[1610289928117,17.56128804,1297.3,1297.2,10.0]
[1610289928518,22.00311486,1297.3,1297.2,10.0]
[1610289928918,17.56128804,1297.3,1297.2,10.0]
[1610289929118,22.00458138,1297.3,1297.2,10.0]
[1610289929518,17.56128804,1297.3,1297.2,10.0]
[1610289929918,33.09494235,1297.3,1297.2,10.0]
[1610289933327,17.56128804,1297.3,1297.2,10.0]
[1610289937536,33.07972489,1297.3,1297.2,10.0]
[1610289937937,15.08364203,1297.3,1297.2,10.0]
[1610289938339,31.45673649,1297.3,1297.2,10.0]
[1610289938538,17.75296232,1297.3,1297.2,10.0]
[1610289938939,29.64423316,1297.3,1297.2,10.0]
[1610289939339,11.89438095,1297.4,1297.2,14.00959]
[1610289939540,12.89173594,1297.3,1297.2,44.00959]
[1610289939739,12.89173594,1297.3,1297.2,34.00959]
[1610289939940,8.24332442,1297.4,1297.2,34.00959]
[1610289940141,8.24332442,1297.4,1297.2,46.15289]
[1610289940342,6.41684023,1297.4,1297.3,10.0]
[1610289940541,6.41684023,1297.4,1297.3,40.0]
[1610289940742,4.58771755,1297.4,1297.3,40.0]
[1610289940942,3.21496461,1297.4,1297.3,40.0]
[1610289942241,3.21790543,1297.5,1297.3,40.0]
[1610289942543,1.83644847,1297.4,1297.3,30.0]
[1610289942742,3.21790543,1297.5,1297.3,30.0]
[1610289942942,3.21790543,1297.5,1297.4,10.0]
[1610289943142,3.22040065,1297.6,1297.4,40.0]
[1610289943345,3.22040065,1297.6,1297.5,4.00959]
[1610289943546,3.22040065,1297.6,1297.5,6.51259]
[1610289943747,3.22040065,1297.6,1297.5,16.51259]
[1610289943947,3.22040065,1297.6,1297.5,12.503]
[1610289944146,12.27677143,1297.8,1297.5,12.503]
[1610289944546,8.26343263,1297.7,1297.5,12.503]
[1610289944746,14.10832138,1297.8,1297.6,10.0]
[1610289945146,10.09359233,1297.7,1297.6,10.0]
[1610289945345,10.09359233,1297.7,1297.2,2.1433]
[1610289945346,10.09359233,1297.7,1297.4,4.00959]
[1610289945746,8.25364128,1297.6,1297.5,10.0]
[1610289946146,8.25404546,1297.7,1297.5,10.0]
[1610289946346,8.25404546,1297.7,1297.4,4.00959]
[1610289946547,8.25404546,1297.7,1297.4,34.00959]
[1610289946746,8.25404546,1297.7,1297.5,10.0]
[1610289947045,8.25404546,1297.7,1297.6,10.0]
[1610289947446,8.25404546,1297.7,1297.6,4.00959]
[1610289947846,8.25404546,1297.7,1297.6,14.00959]
[1610289948246,8.25368937,1297.8,1297.6,14.00959]
[1610289948445,8.25368937,1297.8,1297.7,10.0]
[1610289948848,8.25368937,1297.8,1297.6,10.0]
[1610289949247,8.25368937,1297.8,1297.7,10.0]
[1610289949448,10.08682415,1297.9,1297.7,14.00959]
[1610289949749,10.09744421,1298.0,1297.8,10.0]
[1610289950149,14.22116018,1298.0,1297.8,10.0]
[1610289950349,15.94142526,1298.1,1297.9,10.0]
[1610289950549,15.94142526,1298.1,1297.6,10.0]
[1610289950749,4.00959,1298.1,1297.6,10.0]
[1610289950951,10.10047195,1298.0,1297.6,10.0]
[1610289951152,10.10047195,1298.0,1297.7,10.0]
[1610289951352,8.26631296,1297.9,1297.7,10.0]
[1610289951555,8.26631296,1297.9,1297.6,10.0]
[1610289951753,8.26560379,1297.8,1297.7,10.0]
[1610289951953,8.26529527,1297.9,1297.7,10.0]
[1610289952155,8.26529527,1297.9,1297.6,10.0]
[1610289952353,8.26419228,1297.8,1297.6,10.0]
[1610289952553,8.26419228,1297.8,1297.5,1.631]
[1610289952753,8.26419228,1297.8,1297.6,10.0]
[1610289953253,8.26419228,1297.8,1297.5,2.0948]
[1610289953453,12.27378228,1297.8,1297.7,10.0]
[1610289953653,12.27378228,1297.8,1297.6,10.0]
[1610289954053,12.27378228,1297.8,1297.7,10.0]
[1610289954054,4.00959,1297.8,1297.7,10.0]
[1610289954453,14.10529001,1297.8,1297.6,10.0]
[1610289954854,4.00959,1297.8,1297.7,10.0]
[1610289955256,4.00959,1297.8,1297.6,10.0]
[1610289955656,4.00959,1297.8,1297.7,10.0]
[1610289955855,14.10397587,1297.8,1297.7,10.0]
[1610289956256,14.10397587,1297.8,1297.6,10.0]
[1610289956456,12.27288824,1297.8,1297.7,10.0]
[1610289956656,12.27288824,1297.8,1297.6,10.0]
[1610289956856,4.00959,1297.8,1297.6,10.0]
[1610289957055,4.00959,1297.8,1297.7,10.0]
[1610289957256,10.09856714,1297.9,1297.6,10.0]
[1610289957457,8.26927855,1297.9,1297.8,4.00959]
[1610289957656,8.26927855,1297.9,1297.8,36.36799]
[1610289957857,6.44212162,1297.9,1297.8,46.36799]
[1610289958057,6.44212162,1297.9,1297.8,54.69489]
[1610289958857,4.6124447,1297.9,1297.8,54.69489]
[1610289959156,4.6150164,1298.0,1297.8,54.69489]
[1610289959358,4.6150164,1298.0,1297.9,10.0]
[1610289959557,4.6150164,1298.0,1297.9,40.0]
[1610289959757,6.45917879,1298.1,1297.9,40.0]
[1610289960157,6.4546369,1298.0,1297.9,40.0]
[1610289960357,6.4546369,1298.0,1297.9,30.0]
[1610289960560,4.6125142,1298.0,1297.9,40.0]
[1610289961158,4.61410829,1298.1,1297.9,40.0]
[1610289961458,4.61410829,1298.1,1298.0,4.00959]
[1610289961657,4.61410829,1298.1,1298.0,14.00959]
[1610289961860,6.45790781,1298.2,1298.0,14.00959]
[1610289962259,6.45469218,1298.1,1298.0,34.00959]
[1610289962458,8.2975736,1298.2,1298.0,34.00959]
[1610289962659,6.45406204,1298.1,1298.0,44.00959]
[1610289963460,6.45406204,1298.1,1298.0,14.00959]
[1610289963661,6.45406204,1298.1,1298.0,10.0]
[1610289963961,8.29775451,1298.1,1298.0,10.0]
[1610289964162,8.29775451,1298.1,1298.0,40.0]
[1610289965064,8.31320982,1298.2,1298.0,40.0]
[1610289965264,8.31320982,1298.2,1298.0,10.0]
[1610289965464,12.32595398,1298.1,1297.9,30.0]
[1610289965764,6.47391202,1298.0,1297.9,30.0]
[1610289966164,6.47391202,1298.0,1297.9,40.0]
[1610289966467,12.32595398,1298.1,1297.9,40.0]
[1610289966665,12.32595398,1298.1,1297.9,10.0]
[1610289966866,12.32595398,1298.1,1298.0,10.0]
[1610289967165,14.18734424,1298.1,1297.9,10.0]
[1610289967565,4.00959,1298.1,1298.0,10.0]
[1610289967967,16.03071301,1298.1,1297.9,10.0]
[1610289968369,16.03071301,1298.1,1298.0,10.0]
[1610289968568,4.00959,1298.1,1298.0,10.0]
[1610289968768,4.00959,1298.1,1297.9,10.0]
[1610289968972,4.00959,1298.1,1297.8,8.3269]
[1610289969172,17.87643357,1298.1,1298.0,10.0]
[1610289969571,6.73818621,1298.1,1298.0,10.0]
[1610289969771,6.73818621,1298.1,1297.8,8.3269]
[1610289970175,8.43398621,1298.1,1297.8,8.3269]
[1610289970374,2.72818465,1298.0,1297.9,10.0]
[1610289970574,2.72818465,1298.0,1297.8,8.3269]
[1610289970773,2.72818465,1298.0,1297.1,49.3675]
[1610289970774,15.70586252,1298.0,1297.1,49.3675]
[1610289970973,15.70586252,1298.0,1297.9,10.0]
[1610289971174,4.2643361,1298.0,1297.9,10.0]
[1610289971372,4.2643361,1298.0,1297.1,49.3675]
[1610289971373,2.7254361,1298.0,1297.6,10.0]
[1610289971577,4.00959,1297.7,1297.6,10.0]
[1610289971773,24.53146328,1297.7,1297.1,49.3675]
[1610289972175,11.98787501,1297.2,1297.1,49.3675]
[1610289972575,13.8314544,1297.4,1297.2,10.0]
[1610289972775,13.82083533,1297.3,1297.2,10.0]
[1610289972975,13.82083533,1297.3,1297.1,49.3675]
[1610289973375,13.82083533,1297.3,1297.2,10.0]
[1610289973576,17.83042533,1297.3,1297.2,10.0]
[1610289973776,4.00959,1297.3,1297.2,10.0]
[1610289974177,6.73513974,1297.3,1297.2,10.0]
[1610289974377,8.29843974,1297.3,1297.2,10.0]
[1610289974580,23.96327783,1297.3,1297.2,10.0]
[1610289975180,6.73513974,1297.3,1297.2,10.0]
[1610289975481,22.40263006,1297.3,1297.2,10.0]
[1610289976180,6.73513974,1297.3,1297.2,10.0]
[1610289976380,8.28143974,1297.3,1297.2,10.0]
[1610289976781,6.73513974,1297.3,1297.2,10.0]
[1610289977583,22.41220727,1297.3,1297.2,10.0]
[1610289978784,26.14840727,1297.3,1297.2,10.0]
[1610289979083,8.91253974,1297.3,1297.2,10.0]
[1610289981786,22.7697927,1297.3,1297.2,10.0]
[1610289983789,8.91253974,1297.3,1297.2,10.0]
[1610289984190,10.47103974,1297.3,1297.2,10.0]
[1610289984390,26.17442783,1297.3,1297.2,10.0]
[1610289984990,8.91253974,1297.3,1297.2,10.0]
[1610289986092,10.44803974,1297.3,1297.2,10.0]
[1610289986293,8.91253974,1297.3,1297.2,10.0]
[1610289988394,10.46753974,1297.3,1297.2,10.0]
[1610289988595,8.91253974,1297.3,1297.2,10.0]
[1610289989395,26.39932493,1297.3,1297.2,10.0]
[1610289989796,27.92732493,1297.3,1297.2,10.0]
[1610289989996,26.39932493,1297.3,1297.2,10.0]
[1610289990196,26.39932493,1297.3,1297.2,9.85]
[1610289990396,26.39932493,1297.3,1297.2,5.12083171]
[1610289990596,8.91253974,1297.3,1297.2,5.12083171]
[1610289990997,20.62037157,1297.3,1297.2,5.12083171]
[1610289991297,15.89113459,1297.3,1297.2,5.12083171]
[1610289993301,20.62186889,1297.3,1296.4,53.8789]
[1610289993702,4.00959,1296.5,1296.4,53.8789]
[1610289993902,25.99141195,1296.5,1296.4,53.8789]
[1610289994106,25.99141195,1296.5,1296.4,63.8789]
[1610289994302,23.28160085,1296.5,1296.4,63.8789]
[1610289994702,8.5316516,1296.5,1296.4,63.8789]
[1610289995504,8.5316516,1296.5,1296.4,10.0]
[1610289996709,45.51118271,1296.5,1296.4,10.0]
[1610289996908,45.51118271,1296.5,1296.4,0.6759]
[1610289997108,38.59672712,1296.5,1296.4,0.6759]
[1610289997310,44.25162712,1296.5,1296.4,0.6759]
[1610289997513,69.51927577,1296.5,1293.1,0.23661757]
[1610289997709,69.51927577,1296.5,1293.8,4.00959]
[1610289997910,63.47080387,1296.5,1293.8,4.00959]
[1610289998110,2.43026713,1294.1,1293.9,10.0]
[1610289998311,2.43026713,1294.1,1293.9,11.7437]
[1610289998511,1.83416387,1294.3,1293.9,1.7437]
[1610289998712,3.90082,1294.2,1293.9,1.7437]
[1610289998912,3.90082,1294.2,1294.0,10.0]
[1610289999111,1.83416387,1294.3,1294.0,10.0]
[1610289999112,3.90345709,1294.3,1294.0,10.0]
[1610289999312,3.90345709,1294.3,1294.1,10.0]
[1610289999513,1.83740476,1294.5,1294.1,40.0]
[1610289999714,1.83910093,1294.7,1294.2,4.00959]
[1610289999912,1.83910093,1294.7,1294.2,6.45629]
[1610290000116,1.83910093,1294.7,1294.3,30.0]
[1610290000313,1.83910093,1294.7,1294.3,40.0]
[1610290000515,1.84127728,1294.9,1294.3,30.0]
[1610290000716,1.84127728,1294.9,1294.4,10.0]
[1610290000916,3.22683843,1295.0,1294.2,6.45629]
[1610290000917,1.84208269,1295.0,1294.5,42.2964]
[1610290001316,1.84359751,1295.2,1294.6,10.0]
[1610290001516,1.84359751,1295.2,1294.6,40.0]
[1610290001717,1.84524774,1295.3,1295.1,4.00959]
[1610290001915,1.84524774,1295.3,1295.1,5.97649]
[1610290002116,1.84524774,1295.3,1295.1,1.9669]
[1610290002317,1.84606496,1295.2,1295.1,1.9669]
[1610290002918,1.84606496,1295.2,1295.1,11.9669]
[1610290003118,3.2381076,1295.2,1295.1,11.9669]
[1610290003618,7.2476976,1295.2,1295.1,11.9669]
[1610290003819,8.63240066,1295.2,1295.1,11.9669]
[1610290004019,11.28402149,1295.2,1295.1,11.9669]
[1610290004421,13.12478846,1295.2,1295.1,11.9669]
[1610290004619,6.66121083,1295.2,1295.1,11.9669]
[1610290005020,14.96005487,1295.2,1295.1,11.9669]
[1610290005622,16.48855487,1295.2,1295.1,11.9669]
[1610290005820,14.96005487,1295.2,1295.1,11.9669]
[1610290006220,16.49425487,1295.2,1295.1,11.9669]
[1610290006423,14.96005487,1295.2,1295.1,11.9669]
[1610290007022,13.12218912,1295.2,1295.1,11.9669]
[1610290007223,9.11259912,1295.2,1295.1,11.9669]
[1610290007423,5.88688182,1295.2,1295.1,11.9669]
[1610290007622,1.5638,1295.2,1295.1,15.97649]
[1610290007923,1.5638,1295.2,1295.1,45.97649]
[1610290008123,6.07226296,1295.2,1295.1,45.97649]
[1610290008322,1.5638,1295.2,1295.1,15.97649]
[1610290008521,1.8478076,1295.3,1295.1,15.97649]
[1610290008724,1.84965809,1295.5,1295.2,10.0]
[1610290009122,1.84965809,1295.5,1295.3,10.0]
[1610290009324,2.66523993,1295.5,1295.3,10.0]
[1610290009523,2.66523993,1295.5,1295.2,10.0]
[1610290009723,1.5555,1295.5,1295.4,14.00959]
[1610290009923,4.22221358,1295.5,1295.4,16.33949]
[1610290010122,2.66671358,1295.5,1295.4,16.33949]
[1610290010323,1.85015843,1295.6,1295.4,16.33949]
[1610290010524,1.85015843,1295.6,1295.5,10.0]
[1610290010925,3.24222173,1295.7,1295.5,10.0]
[1610290011326,5.92690294,1295.6,1295.4,2.3299]
[1610290011727,4.00959,1295.5,1295.4,2.3299]
[1610290012127,9.93650355,1295.5,1295.4,12.3299]
[1610290012327,6.68924449,1295.5,1295.4,12.3299]
[1610290012926,2.67965449,1295.5,1295.4,12.3299]
[1610290013128,7.32250506,1295.5,1295.4,12.3299]
[1610290013528,3.25302268,1295.5,1295.4,12.3299]
[1610290013727,3.25302268,1295.5,1295.4,16.33949]
[1610290013927,5.93983598,1295.5,1295.4,16.33949]
[1610290014130,3.25302268,1295.5,1295.4,16.33949]
[1610290014629,5.94109112,1295.5,1295.4,16.33949]
[1610290014931,3.25302268,1295.5,1295.4,12.3299]
[1610290015735,8.80871268,1295.5,1295.4,12.3299]
[1610290015930,4.79912268,1295.5,1295.4,12.3299]
[1610290016132,5.94172659,1295.5,1295.4,12.3299]
[1610290016732,3.25302268,1295.5,1295.4,12.3299]
[1610290017034,3.25244738,1295.6,1295.4,12.3299]
[1610290017434,4.53424436,1295.5,1295.4,2.3299]
[1610290017635,4.53424436,1295.5,1295.4,6.33949]
[1610290017835,3.25244738,1295.6,1295.5,10.0]
[1610290018136,5.93001844,1295.6,1295.5,10.0]
[1610290019739,3.25244738,1295.6,1295.5,10.0]
[1610290020739,1.85947972,1295.6,1295.5,10.0]
[1610290020943,4.54080121,1295.6,1295.5,10.0]
[1610290021339,1.85947972,1295.6,1295.5,10.0]
[1610290021740,5.86906972,1295.6,1295.5,10.0]
[1610290021940,9.94194832,1295.6,1295.5,10.0]
[1610290022140,5.93235832,1295.6,1295.5,10.0]
[1610290022640,3.25395621,1295.6,1295.5,10.0]
[1610290022840,4.79225621,1295.6,1295.5,10.0]
[1610290023041,4.64572166,1295.7,1295.5,10.0]
[1610290023243,4.64572166,1295.7,1295.6,10.0]
[1610290023642,10.51228893,1295.7,1295.5,10.0]
[1610290023843,10.51228893,1295.7,1295.6,10.0]
[1610290024042,6.50269893,1295.7,1295.6,10.0]
[1610290024245,6.50269893,1295.7,1295.4,6.33949]
[1610290024246,4.6477308,1295.7,1295.5,10.0]
[1610290024644,7.35481631,1295.7,1295.6,10.0]
[1610290025050,6.50496589,1295.8,1295.5,10.0]
[1610290025448,9.20888798,1295.7,1295.6,10.0]
[1610290025648,13.21847798,1295.7,1295.6,10.0]
[1610290025847,13.21847798,1295.7,1295.5,10.0]
[1610290026250,13.21847798,1295.7,1295.6,10.0]
[1610290026448,10.51236574,1295.7,1295.5,10.0]
[1610290026849,2.59855426,1295.7,1295.6,10.0]
[1610290027049,6.52221996,1295.8,1295.6,10.0]
[1610290027349,6.52221996,1295.8,1295.5,10.0]
[1610290027652,6.52221996,1295.8,1295.6,14.00959]
[1610290027653,10.53180996,1295.8,1295.6,14.00959]
[1610290028051,2.59633603,1295.7,1295.6,4.00959]
[1610290028251,2.59633603,1295.7,1295.4,2.3299]
[1610290028451,10.97243329,1295.7,1295.2,64.3901]
[1610290028652,10.97243329,1295.7,1295.6,10.0]
[1610290028851,10.23372845,1295.7,1295.2,64.3901]
[1610290029052,12.82518608,1295.7,1295.2,64.3901]
[1610290029252,12.82518608,1295.7,1295.6,10.0]
[1610290030553,2.59145763,1295.7,1295.6,10.0]
[1610290030853,14.67263099,1295.7,1295.6,10.0]
[1610290031455,12.08117336,1295.7,1295.6,10.0]
[1610290031653,14.68346257,1295.7,1295.6,10.0]
[1610290032255,2.60228921,1295.7,1295.6,10.0]
[1610290032956,12.86399801,1295.7,1295.6,10.0]
[1610290033555,2.60228921,1295.7,1295.6,10.0]
[1610290034255,6.53694301,1295.7,1295.6,10.0]
[1610290034656,4.67125078,1295.7,1295.6,40.0]
[1610290035056,6.53788446,1295.8,1295.6,40.0]
[1610290035057,4.67526342,1295.8,1295.6,40.0]
[1610290035256,4.67526342,1295.8,1295.7,10.0]
[1610290035455,4.67526342,1295.8,1295.7,40.0]
[1610290035659,4.67526342,1295.8,1295.7,35.84659]
[1610290035858,3.27516739,1295.8,1295.7,35.84659]
[1610290036058,3.36640174,1295.8,1295.7,45.84659]
[1610290036460,3.36941784,1295.9,1295.7,45.84659]
[1610290036661,3.36941784,1295.9,1295.8,10.0]
[1610290036861,1.49751904,1295.9,1295.8,40.0]
[1610290037060,3.37068249,1296.0,1295.8,40.0]
[1610290037461,3.37172871,1296.1,1295.9,10.0]
[1610290037663,3.37172871,1296.1,1296.0,34.00959]
[1610290037864,3.37172871,1296.1,1296.0,36.52169]
[1610290038264,3.37172871,1296.1,1296.0,46.52169]
[1610290038464,1.49854609,1296.1,1296.0,46.52169]
[1610290038766,1.49854609,1296.1,1296.0,16.52169]
[1610290038964,3.37086114,1296.2,1296.0,16.52169]
[1610290039163,3.37086114,1296.2,1296.1,10.0]
[1610290039465,3.2825957,1296.3,1296.1,10.0]
[1610290039664,7.2921857,1296.3,1296.2,4.00959]
[1610290039863,4.00959,1296.3,1296.2,14.00959]
[1610290040266,7.29553077,1296.3,1296.2,14.00959]
[1610290040766,4.6861936,1296.3,1296.2,14.00959]
[1610290041065,6.55879843,1296.4,1296.2,14.00959]
[1610290041266,6.55879843,1296.4,1296.2,44.00959]
[1610290041465,6.55879843,1296.4,1296.3,10.0]
[1610290041668,6.54802814,1296.5,1296.3,41.895]
[1610290041866,4.67910947,1296.5,1296.4,10.0]
[1610290042068,4.67910947,1296.5,1296.4,40.0]